[Event "1.FrauenBL 2018-19"]
[Site "Berlin"]
[Date "2019.03.02"]
[Round "10.2"]
[White "Khademalsharieh, Sarasadat"]
[Black "Majdan, Joanna"]
[Result "1-0"]
[ECO "E68"]
[WhiteElo "2482"]
[BlackElo "2387"]
[Annotator "RC"]
[PlyCount "77"]
[EventDate "2018.10.27"]
[EventType "team-tourn"]
[EventCountry "GER"]
[SourceTitle "playchess.com"]
[Source "ChessBase"]
[SourceQuality "1"]
[WhiteTeam "Hamburger SK"]
[BlackTeam "Rodewischer SM"]
[TimeControl "40/5400+30:1800+30"]

1. Nf3 {[%emt 0:00:00]} Nf6 {[%emt 0:00:37]} 2. c4 {[%emt 0:00:21]} g6 {[%emt 0:00:38]} 3. d4 {[%emt 0:00:38]} Bg7 {[%emt 0:00:06]} 4. g3 {[%emt 0:00:06]} O-O {[%emt 0:00:08]} 5. Bg2 {[%emt 0:00:30]} d6 {[%emt 0:00:10]} 6. Nc3 {[%emt 0:00:35]} Nbd7 {[%emt 0:00:01]} 7. O-O {[%emt 0:00:13]} e5 {[%emt 0:00:13]} 8. e4 {[%emt 0:00:13]} exd4 {[%emt 0:00:13]} 9. Nxd4 {[%emt 0:00:06]} Re8 {[%emt 0:00:06]} 10. h3 {[%emt 0:00:14]} Nc5 {[%emt 0:00:14]} 11. Re1 {[%emt 0:00:14]} Bd7 {[%emt 0:00:14]} 12. Rb1 {[%emt 0:01:12]} h6 {[%emt 0:06:50]} 13. Kh2 {[%emt 0:03:41]} a5 {[%emt 0:03:24]} 14. b3 {[%emt 0:00:47]} Re5 {[%emt 0:00:00]} 15. f4 {[%emt 0:13:18]} Rh5 {[%emt 0:02:46]} 16. f5 {[%emt 0:05:16]} gxf5 {[%emt 0:00:18]} 17. Nd5 {[%emt 0:01:32]} Ncxe4 {[%emt 0:13:25]} 18. Nxf6+ {[%emt 0:14:47]} Nxf6 {[%emt 0:00:50]} 19. Bf4 {[%emt 0:00:08]} Qb8 {[%emt 0:05:14]} 20. Kg1 {[%emt 0:06:11]} Qa7 {[%emt 0:14:05]} 21. Be3 {[%emt 0:02:03]} Re8 {[%emt 0:02:03]} 22. Nxf5 {[%emt 0:06:54]} Rxe3 {[%emt 0:07:48]} 23. Nxe3 {[%emt 0:00:00]} Re5 {[%emt 0:01:02]} 24. Qd2 {[%emt 0:04:12]} Ne4 {[%emt 0:03:39]} 25. Bxe4 {[%emt 0:00:17]} Rxe4 {[%emt 0:00:04]} 26. Kh2 {[%emt 0:00:16]} Rd4 {[%emt 0:00:00]} 27. Qg2 {[%emt 0:04:06]} Qc5 {[%emt 0:05:56]} 28. Nd5 {[%emt 0:01:23]} c6 {[%emt 0:03:52]} 29. Nf4 {[%emt 0:00:37]} h5 {[%emt 0:00:00]} 30. Re7 {[%emt 0:04:41]} Bf5 {[%emt 0:00:05]} 31. Rf1 {[%emt 0:01:09]} h4 {[%emt 0:14:44]} 32. g4 {[%emt 0:13:05]} Rxf4 {[%emt 0:03:29]} 33. Rxf4 {[%emt 0:03:29]} Bg6 {[%emt 0:00:27]} 34. Re8+ {[%emt 0:00:00]} Kh7 {[%emt 0:01:25]} 35. Qf2 {[%emt 0:00:00]} Qg5 {[%emt 0:02:32]} 36. Rxf7 {[%emt 0:04:54]} Bxf7 {[%emt 0:01:07]} 37. Qxf7 {[%emt 0:00:00]} Qd2+ {[%emt 0:00:04]} 38. Kg1 {[%emt 0:00:00]} Qd4+ {[%emt 0:00:54]} 39. Kg2 {[%emt 0:00:00]} 1-0

[Event "1.FrauenBL 2018-19"]
[Site "Berlin"]
[Date "2019.03.02"]
[Round "10.2"]
[White "Winterholler, Christina"]
[Black "Goehler, Antje"]
[Result "1/2-1/2"]
[ECO "B50"]
[WhiteElo "2058"]
[BlackElo "2099"]
[Annotator "NA"]
[PlyCount "157"]
[EventDate "2018.10.27"]
[EventType "team-tourn"]
[EventCountry "GER"]
[SourceTitle "playchess.com"]
[Source "ChessBase"]
[SourceQuality "1"]
[WhiteTeam "Hofheim"]
[BlackTeam "Pankow"]
[TimeControl "40/5400+30:1800+30"]

1. e4 {[%emt 0:00:13]} c5 {[%emt 0:00:00]} 2. b3 {[%emt 0:00:25]} a6 {[%emt 0:02:09]} 3. Bb2 {[%emt 0:00:29]} Nc6 {[%emt 0:01:17]} 4. Nf3 {[%emt 0:04:59]} d6 {[%emt 0:01:23]} 5. d4 {[%emt 0:08:43]} cxd4 {[%emt 0:00:55]} 6. Nxd4 {[%emt 0:00:32]} e6 {[%emt 0:03:20]} 7. Bd3 {[%emt 0:26:02]} Nf6 {[%emt 0:11:45]} 8. Nd2 {[%emt 0:06:13]} Be7 {[%emt 0:01:13]} 9. Qe2 {[%emt 0:05:08]} Ne5 {[%emt 0:09:01]} 10. O-O {[%emt 0:14:08]} O-O {[%emt 0:03:12]} 11. c4 {[%emt 0:03:25]} Nxd3 {[%emt 0:00:59]} 12. Qxd3 {[%emt 0:00:03]} Qc7 {[%emt 0:07:53]} 13. Rac1 {[%emt 0:01:29]} Rd8 {[%emt 0:08:34]} 14. Qe2 {[%emt 0:05:04]} Bd7 {[%emt 0:03:42]} 15. Kh1 {[%emt 0:04:57]} Qa5 {[%emt 0:03:45]} 16. a3 {[%emt 0:05:02]} Qh5 {[%emt 0:01:39]} 17. f3 {[%emt 0:02:27]} e5 {[%emt 0:16:39]} 18. Nc2 {[%emt 0:01:30]} Ne8 {[%emt 0:00:34]} 19. Ne3 {[%emt 0:01:24]} Be6 {[%emt 0:00:26]} 20. Rfd1 {[%emt 0:03:03]} Bg5 {[%emt 0:01:43]} 21. Ndf1 {[%emt 0:00:52]} Qh6 {[%emt 0:01:24]} 22. Rc3 {[%emt 0:00:32]} g6 {[%emt 0:01:43]} 23. Rcd3 {[%emt 0:00:34]} f5 {[%emt 0:01:57]} 24. exf5 {[%emt 0:00:26]} gxf5 {[%emt 0:00:29]} 25. Nd5 {[%emt 0:00:46]} Bxd5 {[%emt 0:02:38]} 26. Rxd5 {[%emt 0:00:08]} Nc7 {[%emt 0:01:37]} 27. R5d3 {[%emt 0:00:54]} Qe6 {[%emt 0:01:06]} 28. Bc3 {[%emt 0:02:31]} b5 {[%emt 0:03:40]} 29. c5 {[%emt 0:02:14]} dxc5 {[%emt 0:01:48]} 30. Qxe5 {[%emt 0:00:24]} Qxe5 {[%emt 0:07:38]} 31. Bxe5 {[%emt 0:00:02]} Ne6 {[%emt 0:00:00]} 32. Ng3 {[%emt 0:00:53]} f4 {[%emt 0:00:00]} 33. Ne4 {[%emt 0:00:05]} Rxd3 {[%emt 0:00:00]} 34. Rxd3 {[%emt 0:00:02]} Rd8 {[%emt 0:00:00]} 35. Rd6 {[%emt 0:01:28]} Be7 {[%emt 0:00:27]} 36. Rxd8+ {[%emt 0:00:13]} Bxd8 {[%emt 0:00:08]} 37. Bd6 {[%emt 0:00:19]} c4 {[%emt 0:02:26]} 38. bxc4 {[%emt 0:00:01]} bxc4 {[%emt 0:00:00]} 39. Bb4 {[%emt 0:00:37]} a5 {[%emt 0:00:03]} 40. Bc3 {[%emt 0:01:20]} Be7 {[%emt 0:00:16]} 41. Bxa5 {[%emt 0:03:05]} Bxa3 {[%emt 0:05:07]} 42. Nd2 {[%emt 0:01:38]} Bc5 {[%emt 0:06:55]} 43. Nxc4 {[%emt 0:05:47]} Nd4 {[%emt 0:00:58]} 44. Bc7 {[%emt 0:12:57]} Ne2 {[%emt 0:00:54]} 45. g3 {[%emt 0:03:32]} fxg3 {[%emt 0:02:57]} 46. hxg3 {[%emt 0:00:02]} Nd4 {[%emt 0:00:22]} 47. Kg2 {[%emt 0:01:34]} Nf5 {[%emt 0:00:09]} 48. Bb6 {[%emt 0:01:03]} Bb4 {[%emt 0:02:47]} 49. g4 {[%emt 0:01:00]} Nd6 {[%emt 0:03:03]} 50. Ne5 Bc3 {[%emt 0:00:53]} 51. Nd3 {[%emt 0:01:19]} Nc4 {[%emt 0:00:44]} 52. Bc7 {[%emt 0:00:31]} Ne3+ {[%emt 0:00:25]} 53. Kg3 {[%emt 0:00:19]} Nd5 {[%emt 0:03:18]} 54. Bd6 {[%emt 0:01:01]} Ba5 {[%emt 0:03:32]} 55. f4 {[%emt 0:00:22]} Nf6 {[%emt 0:00:22]} 56. Kf3 {[%emt 0:00:30]} Bd2 {[%emt 0:01:55]} 57. g5 {[%emt 0:00:20]} Nh5 {[%emt 0:01:09]} 58. Ke4 {[%emt 0:03:22]} Ng3+ {[%emt 0:00:48]} 59. Ke5 {[%emt 0:00:28]} Kf7 {[%emt 0:01:08]} 60. Nc5 {[%emt 0:00:41]} Kg6 {[%emt 0:02:35]} 61. Nd7 {[%emt 0:00:46]} h5 {[%emt 0:01:09]} 62. gxh6 {[%emt 0:00:42]} Kxh6 {[%emt 0:00:04]} 63. Ke6 {[%emt 0:00:33]} Ne4 {[%emt 0:01:27]} 64. Bf8+ {[%emt 0:00:14]} Kh7 {[%emt 0:00:24]} 65. f5 {[%emt 0:00:05]} Bc3 {[%emt 0:00:33]} 66. Be7 {[%emt 0:00:29]} Ng3 {[%emt 0:00:40]} 67. f6 {[%emt 0:00:52]} Bxf6 {[%emt 0:00:19]} 68. Kxf6 {[%emt 0:00:26]} Kh6 {[%emt 0:00:36]} 69. Ne5 {[%emt 0:00:49]} Kh5 {[%emt 0:00:17]} 70. Ke6 {[%emt 0:00:22]} Kh6 {[%emt 0:01:21]} 71. Bh4 {[%emt 0:00:14]} Nh5 {[%emt 0:00:21]} 72. Kf7 {[%emt 0:00:13]} Nf4 {[%emt 0:00:12]} 73. Bg3 {[%emt 0:00:28]} Kg5 {[%emt 0:00:41]} 74. Be1 {[%emt 0:00:41]} Kf5 {[%emt 0:00:16]} 75. Nc6 {[%emt 0:00:13]} Nd5 {[%emt 0:00:25]} 76. Bd2 {[%emt 0:00:27]} Ke4 {[%emt 0:00:29]} 77. Ke6 {[%emt 0:00:59]} Nf4+ {[%emt 0:00:14]} 78. Kd6 {[%emt 0:00:14]} Nd5 {[%emt 0:00:26]} 79. Kc5 {[%emt 0:01:10]} 1/2-1/2

[Event "1.FrauenBL 2018-19"]
[Site "Berlin"]
[Date "2019.03.02"]
[Round "10.3"]
[White "Sieber, Fiona"]
[Black "Schneider, Jana"]
[Result "0-1"]
[ECO "C78"]
[WhiteElo "2331"]
[BlackElo "2201"]
[Annotator "NA"]
[PlyCount "62"]
[EventDate "2018.10.27"]
[EventType "team-tourn"]
[EventCountry "GER"]
[SourceTitle "playchess.com"]
[Source "ChessBase"]
[SourceQuality "1"]
[WhiteTeam "SK Lehrte"]
[BlackTeam "Bad Koenigshofen"]
[TimeControl "40/5400+30:1800+30"]

1. e4 {[%emt 0:00:03]} e5 {[%emt 0:00:07]} 2. Nf3 {[%emt 0:00:04]} Nc6 {[%emt 0:00:00]} 3. Bb5 {[%emt 0:00:13]} a6 {[%emt 0:00:00]} 4. Ba4 {[%emt 0:00:07]} Nf6 {[%emt 0:00:24]} 5. O-O {[%emt 0:00:04]} b5 {[%emt 0:00:10]} 6. Bb3 {[%emt 0:00:09]} Bc5 {[%emt 0:00:09]} 7. a4 {[%emt 0:01:12]} Rb8 {[%emt 0:00:14]} 8. c3 {[%emt 0:00:00]} d6 {[%emt 0:00:42]} 9. d4 {[%emt 0:00:38]} Bb6 {[%emt 0:00:30]} 10. a5 {[%emt 0:00:00]} Ba7 {[%emt 0:00:17]} 11. Be3 {[%emt 0:00:53]} Bg4 {[%emt 0:00:20]} 12. Nbd2 {[%emt 0:11:07]} O-O {[%emt 0:18:14]} 13. h3 {[%emt 0:07:33]} Bh5 {[%emt 0:00:26]} 14. Qc2 {[%emt 0:04:42]} Re8 {[%emt 0:08:20]} 15. d5 {[%emt 0:02:51]} Bxe3 {[%emt 0:00:31]} 16. fxe3 {[%emt 0:00:48]} Ne7 {[%emt 0:00:00]} 17. c4 {[%emt 0:00:15]} c6 {[%emt 0:08:08]} 18. dxc6 {[%emt 0:05:16]} Nxc6 {[%emt 0:02:28]} 19. cxb5 {[%emt 0:05:05]} Nxa5 {[%emt 0:03:07]} 20. bxa6 {[%emt 0:11:24]} Nxb3 {[%emt 0:00:21]} 21. Nxb3 {[%emt 0:01:42]} Qb6 {[%emt 0:00:34]} 22. Nbd2 {[%emt 0:07:18]} Qxe3+ {[%emt 0:03:24]} 23. Kh1 {[%emt 0:01:47]} Rbc8 {[%emt 0:00:44]} 24. Nc4 {[%emt 0:08:43]} Qc5 {[%emt 0:09:55]} 25. a7 {[%emt 0:04:02]} Bg6 {[%emt 0:03:51]} 26. Nfd2 {[%emt 0:00:00]} h6 {[%emt 0:03:02]} 27. Qb1 {[%emt 0:14:43]} d5 {[%emt 0:11:39]} 28. Nxe5 {[%emt 0:03:08]} Nxe4 {[%emt 0:06:32]} 29. Nxe4 {[%emt 0:01:56]} Bxe4 {[%emt 0:00:13]} 30. b4 {[%emt 0:01:15]} Qc3 {[%emt 0:02:29]} 31. Rc1 {[%emt 0:02:33]} Qxh3+ {[%emt 0:01:02]} 0-1

[Event "1.FrauenBL 2018-19"]
[Site "Berlin"]
[Date "2019.03.02"]
[Round "10.3"]
[White "Lubbe, Melanie"]
[Black "Hoolt, Sarah"]
[Result "1/2-1/2"]
[ECO "C11"]
[WhiteElo "2288"]
[BlackElo "2324"]
[Annotator "NA"]
[PlyCount "80"]
[EventDate "2018.10.27"]
[EventType "team-tourn"]
[EventCountry "GER"]
[SourceTitle "playchess.com"]
[Source "ChessBase"]
[SourceQuality "1"]
[WhiteTeam "Rodewischer SM"]
[BlackTeam "Hamburger SK"]
[TimeControl "40/5400+30:1800+30"]

1. e4 {[%emt 0:00:07]} e6 {[%emt 0:00:06]} 2. d4 {[%emt 0:00:04]} d5 {[%emt 0:00:04]} 3. Nc3 {[%emt 0:00:08]} Nf6 {[%emt 0:00:12]} 4. e5 {[%emt 0:00:06]} Nfd7 {[%emt 0:00:04]} 5. f4 {[%emt 0:00:07]} c5 {[%emt 0:00:04]} 6. Nf3 {[%emt 0:00:05]} Nc6 {[%emt 0:00:07]} 7. Be3 {[%emt 0:00:17]} Be7 {[%emt 0:00:23]} 8. Qd2 {[%emt 0:01:05]} O-O {[%emt 0:01:26]} 9. dxc5 {[%emt 0:00:51]} Bxc5 {[%emt 0:00:25]} 10. O-O-O {[%emt 0:04:54]} Qb6 {[%emt 0:00:06]} 11. Bxc5 {[%emt 0:02:22]} Nxc5 {[%emt 0:00:11]} 12. Nd4 {[%emt 0:13:32]} Rd8 {[%emt 0:06:54]} 13. Kb1 {[%emt 0:04:42]} Bd7 {[%emt 0:07:35]} 14. h4 {[%emt 0:05:05]} Ne4 {[%emt 0:08:46]} 15. Nxe4 {[%emt 0:01:54]} dxe4 {[%emt 0:00:11]} 16. Be2 {[%emt 0:16:03]} Be8 {[%emt 0:06:23]} 17. c3 {[%emt 0:00:16]} Nxd4 {[%emt 0:01:12]} 18. cxd4 {[%emt 0:00:05]} Ba4 {[%emt 0:00:14]} 19. b3 {[%emt 0:01:21]} Rd7 {[%emt 0:08:56]} 20. f5 {[%emt 0:17:48]} exf5 {[%emt 0:01:15]} 21. d5 {[%emt 0:05:08]} Bb5 {[%emt 0:09:37]} 22. g4 {[%emt 0:05:17]} fxg4 {[%emt 0:08:54]} 23. d6 {[%emt 0:00:42]} e3 {[%emt 0:06:12]} 24. Qc2 {[%emt 0:00:40]} h5 {[%emt 0:00:13]} 25. Rhe1 {[%emt 0:02:11]} Bc6 {[%emt 0:20:28]} 26. Bc4 {[%emt 0:01:13]} Re8 {[%emt 0:00:15]} 27. Qf5 {[%emt 0:04:49]} Qc5 {[%emt 0:02:35]} 28. Bd5 {[%emt 0:07:10]} Bxd5 {[%emt 0:01:28]} 29. Qxd7 {[%emt 0:00:08]} Be4+ {[%emt 0:01:34]} 30. Kb2 {[%emt 0:00:05]} Qxe5+ {[%emt 0:00:21]} 31. Ka3 {[%emt 0:00:11]} Qc5+ {[%emt 0:05:12]} 32. Kb2 {[%emt 0:00:08]} Qe5+ {[%emt 0:00:21]} 33. Ka3 {[%emt 0:00:05]} Qc5+ {[%emt 0:00:04]} 34. Kb2 {[%emt 0:00:03]} Qc2+ {[%emt 0:03:43]} 35. Ka3 {[%emt 0:00:07]} Bc6 {[%emt 0:00:06]} 36. Qc7 {[%emt 0:01:05]} Re4 {[%emt 0:00:11]} 37. Qc8+ {[%emt 0:02:28]} Kh7 {[%emt 0:01:07]} 38. Qf5+ {[%emt 0:00:07]} Kg8 {[%emt 0:00:14]} 39. Qc8+ {[%emt 0:00:50]} Kh7 {[%emt 0:00:02]} 40. Qf5+ {[%emt 0:00:51]} Kg8 {[%emt 0:00:50]} 1/2-1/2

[Event "1.FrauenBL 2018-19"]
[Site "Berlin"]
[Date "2019.03.02"]
[Round "10.3"]
[White "Heyme, Sibylle"]
[Black "Roessler, Ulrike"]
[Result "0-1"]
[ECO "B07"]
[WhiteElo "2025"]
[BlackElo "2126"]
[Annotator "NA"]
[PlyCount "120"]
[EventDate "2018.10.27"]
[EventType "team-tourn"]
[EventCountry "GER"]
[SourceTitle "playchess.com"]
[Source "ChessBase"]
[SourceQuality "1"]
[WhiteTeam "Pankow"]
[BlackTeam "Hofheim"]
[TimeControl "40/5400+30:1800+30"]

1. e4 {[%emt 0:00:00]} d6 {[%emt 0:00:03]} 2. d4 {[%emt 0:00:16]} Nf6 {[%emt 0:00:03]} 3. Nc3 {[%emt 0:00:10]} g6 {[%emt 0:00:00]} 4. Be3 {[%emt 0:00:33]} c6 {[%emt 0:00:23]} 5. a4 {[%emt 0:02:51]} Nbd7 {[%emt 0:02:51]} 6. f3 {[%emt 0:07:39]} Bg7 {[%emt 0:07:39]} 7. Bc4 {[%emt 0:07:17]} d5 {[%emt 0:04:05]} 8. exd5 {[%emt 0:08:01]} Nb6 {[%emt 0:01:07]} 9. Bb3 {[%emt 0:01:46]} Nbxd5 {[%emt 0:00:07]} 10. Nxd5 {[%emt 0:03:03]} Nxd5 {[%emt 0:00:04]} 11. Bf2 {[%emt 0:17:36]} Bh6 {[%emt 0:06:44]} 12. Bxd5 Qxd5 {[%emt 0:00:08]} 13. Ne2 {[%emt 0:10:42]} Qa5+ {[%emt 0:10:08]} 14. c3 {[%emt 0:00:25]} Be6 {[%emt 0:26:27]} 15. O-O {[%emt 0:00:52]} O-O {[%emt 0:00:00]} 16. Re1 {[%emt 0:00:00]} Rfd8 {[%emt 0:00:00]} 17. Ng3 {[%emt 0:00:00]} Qd5 {[%emt 0:00:00]} 18. Qe2 {[%emt 0:00:00]} Rd7 {[%emt 0:00:00]} 19. Ne4 {[%emt 0:19:41]} b6 {[%emt 0:00:00]} 20. a5 {[%emt 0:00:06]} Rad8 {[%emt 0:00:00]} 21. h4 {[%emt 0:02:20]} Qc4 {[%emt 0:00:00]} 22. Qxc4 {[%emt 0:03:24]} Bxc4 {[%emt 0:00:00]} 23. axb6 {[%emt 0:00:11]} axb6 {[%emt 0:00:00]} 24. Ra3 {[%emt 0:01:08]} Rd5 {[%emt 0:07:40]} 25. b3 {[%emt 0:03:37]} Bd3 {[%emt 0:00:25]} 26. c4 {[%emt 0:00:09]} R5d7 {[%emt 0:01:14]} 27. Ng5 {[%emt 0:00:56]} Bg7 {[%emt 0:00:57]} 28. d5 {[%emt 0:00:40]} cxd5 {[%emt 0:01:36]} 29. Bxb6 {[%emt 0:00:43]} Rb8 {[%emt 0:21:55]} 30. c5 {[%emt 0:00:00]} Bc3 {[%emt 0:00:00]} 31. c6 {[%emt 0:04:55]} Rd6 {[%emt 0:00:00]} 32. Rxe7 {[%emt 0:00:09]} Rxc6 {[%emt 0:00:00]} 33. Bf2 {[%emt 0:00:38]} Bb4 {[%emt 0:05:42]} 34. Raa7 {[%emt 0:00:00]} Bxe7 {[%emt 0:00:00]} 35. Rxe7 {[%emt 0:00:14]} Bf5 {[%emt 0:00:00]} 36. Nxf7 {[%emt 0:00:00]} Rxb3 {[%emt 0:00:00]} 37. Nh6+ {[%emt 0:05:00]} Kf8 {[%emt 0:00:00]} 38. Rxh7 {[%emt 0:00:00]} Rb2 {[%emt 0:05:28]} 39. Bd4 {[%emt 0:00:44]} Rd2 {[%emt 0:00:30]} 40. Bg7+ {[%emt 0:00:58]} Ke8 {[%emt 0:00:00]} 41. Rh8+ {[%emt 0:31:18]} Kd7 {[%emt 0:19:59]} 42. Nxf5 {[%emt 0:00:00]} gxf5 {[%emt 0:00:00]} 43. Be5 {[%emt 0:00:00]} Re2 {[%emt 0:00:00]} 44. Rh7+ {[%emt 0:00:00]} Ke8 {[%emt 0:00:00]} 45. Bf4 {[%emt 0:00:00]} Rg6 {[%emt 0:00:00]} 46. Bg5 {[%emt 0:00:00]} Ra6 {[%emt 0:00:00]} 47. Rh8+ {[%emt 0:00:00]} Kf7 {[%emt 0:00:00]} 48. Rh7+ {[%emt 0:00:00]} Kg8 {[%emt 0:00:00]} 49. Rd7 {[%emt 0:00:00]} Raa2 {[%emt 0:00:00]} 50. Rd8+ {[%emt 0:00:00]} Kf7 {[%emt 0:05:11]} 51. Rxd5 {[%emt 0:00:00]} Rxg2+ {[%emt 0:00:21]} 52. Kh1 {[%emt 0:00:00]} Rge2 {[%emt 0:00:00]} 53. Rd1 {[%emt 0:00:00]} Rf2 {[%emt 0:00:00]} 54. f4 {[%emt 0:00:00]} Kg6 {[%emt 0:04:21]} 55. Kg1 {[%emt 0:00:00]} Kh5 {[%emt 0:00:00]} 56. Rc1 {[%emt 0:00:00]} Kg4 {[%emt 0:00:00]} 57. Rb1 {[%emt 0:00:00]} Rf3 {[%emt 0:00:00]} 58. Rd1 {[%emt 0:00:00]} Kh3 {[%emt 0:00:00]} 59. h5 {[%emt 0:01:50]} Rg2+ {[%emt 0:04:14]} 60. Kh1 {[%emt 0:00:02]} Rfg3 {[%emt 0:00:02]} 0-1

[Event "1.FrauenBL 2018-19"]
[Site "Berlin"]
[Date "2019.03.02"]
[Round "10.4"]
[White "Melamed, Tatjana"]
[Black "Hapala, Elisabeth"]
[Result "1-0"]
[ECO "C00"]
[WhiteElo "2359"]
[BlackElo "2143"]
[Annotator "NA"]
[PlyCount "111"]
[EventDate "2018.10.27"]
[EventType "team-tourn"]
[EventCountry "GER"]
[SourceTitle "playchess.com"]
[Source "ChessBase"]
[SourceQuality "1"]
[WhiteTeam "Bad Koenigshofen"]
[BlackTeam "SK Lehrte"]
[TimeControl "40/5400+30:1800+30"]

1. e4 {[%emt 0:00:04]} c5 {[%emt 0:00:04]} 2. Nf3 {[%emt 0:00:05]} e6 {[%emt 0:00:04]} 3. g3 {[%emt 0:00:34]} Nc6 {[%emt 0:00:13]} 4. Bg2 {[%emt 0:00:15]} Nf6 {[%emt 0:00:16]} 5. Qe2 {[%emt 0:00:25]} d6 {[%emt 0:00:20]} 6. O-O {[%emt 0:01:06]} Be7 {[%emt 0:00:11]} 7. c3 {[%emt 0:00:37]} O-O {[%emt 0:00:13]} 8. d4 {[%emt 0:01:47]} cxd4 {[%emt 0:00:06]} 9. cxd4 {[%emt 0:00:03]} d5 {[%emt 0:00:07]} 10. e5 {[%emt 0:00:27]} Ne4 {[%emt 0:00:06]} 11. Be3 {[%emt 0:01:02]} Bd7 {[%emt 0:04:24]} 12. Ne1 {[%emt 0:05:04]} f6 {[%emt 0:34:32]} 13. f3 {[%emt 0:05:12]} Ng5 {[%emt 0:00:04]} 14. Nd2 {[%emt 0:07:10]} Qb6 {[%emt 0:06:46]} 15. Nd3 {[%emt 0:07:34]} Nb4 {[%emt 0:05:21]} 16. exf6 {[%emt 0:12:44]} Bxf6 {[%emt 0:00:26]} 17. Nxb4 {[%emt 0:01:04]} Qxb4 {[%emt 0:00:11]} 18. Nb3 {[%emt 0:01:00]} Bb5 {[%emt 0:18:16]} 19. Qe1 {[%emt 0:00:50]} Qd6 {[%emt 0:00:07]} 20. Rf2 {[%emt 0:00:38]} Rae8 {[%emt 0:01:22]} 21. Bf4 {[%emt 0:12:33]} Qb6 {[%emt 0:08:49]} 22. Qd2 {[%emt 0:05:54]} Nf7 {[%emt 0:00:53]} 23. a4 {[%emt 0:00:59]} Bc6 {[%emt 0:05:15]} 24. Nc5 {[%emt 0:02:16]} e5 {[%emt 0:02:12]} 25. a5 {[%emt 0:02:09]} Qd8 {[%emt 0:02:23]} 26. dxe5 {[%emt 0:06:53]} Nxe5 {[%emt 0:00:06]} 27. Bxe5 {[%emt 0:00:14]} Rxe5 {[%emt 0:03:10]} 28. f4 {[%emt 0:00:33]} Re7 {[%emt 0:01:05]} 29. Rd1 {[%emt 0:01:57]} d4 {[%emt 0:03:09]} 30. Bxc6 {[%emt 0:04:30]} bxc6 {[%emt 0:00:01]} 31. Nd3 {[%emt 0:01:57]} Rfe8 {[%emt 0:00:36]} 32. b4 {[%emt 0:00:30]} Qd5 {[%emt 0:01:19]} 33. Qa2 {[%emt 0:01:10]} Qxa2 {[%emt 0:02:08]} 34. Rxa2 {[%emt 0:00:05]} Re2 {[%emt 0:00:49]} 35. Rdd2 {[%emt 0:05:20]} Rxd2 {[%emt 0:00:12]} 36. Rxd2 {[%emt 0:00:04]} Kf7 {[%emt 0:01:59]} 37. Kf2 {[%emt 0:01:09]} Re3 {[%emt 0:00:35]} 38. Nc5 {[%emt 0:03:24]} Ke7 {[%emt 0:00:29]} 39. Re2 {[%emt 0:01:02]} Rxe2+ {[%emt 0:00:00]} 40. Kxe2 {[%emt 0:00:02]} g6 {[%emt 0:01:37]} 41. Kd3 {[%emt 0:32:03]} Bg7 {[%emt 0:03:22]} 42. Nb3 {[%emt 0:00:00]} Kd6 {[%emt 0:11:05]} 43. Kc4 {[%emt 0:00:00]} d3 {[%emt 0:01:06]} 44. Nc5 {[%emt 0:00:00]} d2 {[%emt 0:12:27]} 45. Ne4+ {[%emt 0:00:00]} Ke6 {[%emt 0:00:04]} 46. Nxd2 {[%emt 0:00:00]} Kf5 {[%emt 0:00:09]} 47. Nf3 {[%emt 0:00:00]} Kg4 {[%emt 0:03:28]} 48. Ne5+ {[%emt 0:00:00]} Kh3 {[%emt 0:00:05]} 49. Nxc6 {[%emt 0:00:00]} Kxh2 {[%emt 0:00:14]} 50. b5 {[%emt 0:00:00]} Kxg3 {[%emt 0:00:12]} 51. b6 {[%emt 0:00:00]} axb6 {[%emt 0:00:42]} 52. axb6 {[%emt 0:00:00]} Bh6 {[%emt 0:02:55]} 53. Kd5 {[%emt 0:00:00]} Bxf4 {[%emt 0:00:25]} 54. Ne5 {[%emt 0:00:00]} Be3 {[%emt 0:00:46]} 55. b7 {[%emt 0:00:00]} Ba7 {[%emt 0:00:05]} 56. Nc6 {[%emt 0:00:00]} 1-0

[Event "1.FrauenBL 2018-19"]
[Site "Berlin"]
[Date "2019.03.02"]
[Round "10.4"]
[White "Osmanodja, Filiz"]
[Black "Movsesian, Julia"]
[Result "0-1"]
[ECO "C70"]
[WhiteElo "2326"]
[BlackElo "2324"]
[Annotator "NA"]
[PlyCount "98"]
[EventDate "2018.10.27"]
[EventType "team-tourn"]
[EventCountry "GER"]
[SourceTitle "playchess.com"]
[Source "ChessBase"]
[SourceQuality "1"]
[WhiteTeam "Hamburger SK"]
[BlackTeam "Rodewischer SM"]
[TimeControl "40/5400+30:1800+30"]

1. e4 {[%emt 0:00:05]} e5 {[%emt 0:00:14]} 2. Nf3 {[%emt 0:00:03]} Nc6 {[%emt 0:00:00]} 3. Bb5 {[%emt 0:00:02]} a6 4. Ba4 {[%emt 0:00:30]} Nge7 {[%emt 0:00:36]} 5. Nc3 {[%emt 0:08:08]} g6 {[%emt 0:07:24]} 6. d4 {[%emt 0:02:45]} exd4 {[%emt 0:00:39]} 7. Nd5 {[%emt 0:06:13]} Bg7 {[%emt 0:08:23]} 8. Bg5 {[%emt 0:03:43]} h6 {[%emt 0:03:43]} 9. Bf6 {[%emt 0:00:00]} Bxf6 {[%emt 0:00:00]} 10. Nxf6+ {[%emt 0:01:54]} Kf8 {[%emt 0:00:00]} 11. Nxd4 {[%emt 0:06:25]} Kg7 {[%emt 0:08:19]} 12. Ng4 {[%emt 0:07:56]} d6 {[%emt 0:07:56]} 13. h3 {[%emt 0:13:47]} Bxg4 {[%emt 0:13:47]} 14. hxg4 {[%emt 0:00:25]} b5 {[%emt 0:05:41]} 15. Bb3 {[%emt 0:03:03]} Qd7 {[%emt 0:00:00]} 16. a4 {[%emt 0:16:44]} b4 {[%emt 0:12:56]} 17. a5 {[%emt 0:00:00]} Ne5 {[%emt 0:03:32]} 18. f4 {[%emt 0:01:27]} Nxg4 {[%emt 0:05:35]} 19. Ne6+ {[%emt 0:19:43]} fxe6 {[%emt 0:01:03]} 20. Qxg4 {[%emt 0:00:03]} d5 {[%emt 0:07:41]} 21. O-O-O {[%emt 0:04:20]} Rad8 {[%emt 0:01:02]} 22. exd5 {[%emt 0:02:54]} exd5 {[%emt 0:11:09]} 23. Qe2 {[%emt 0:00:01]} Qd6 {[%emt 0:00:00]} 24. Rhe1 {[%emt 0:00:48]} Rhe8 {[%emt 0:00:00]} 25. Qd2 {[%emt 0:00:05]} c6 {[%emt 0:00:00]} 26. g4 {[%emt 0:00:19]} Ng8 {[%emt 0:00:00]} 27. f5 {[%emt 0:01:14]} g5 {[%emt 0:00:00]} 28. Qd4+ {[%emt 0:00:37]} Nf6 {[%emt 0:00:00]} 29. Qa7+ {[%emt 0:00:44]} Qd7 {[%emt 0:00:57]} 30. Qxa6 {[%emt 0:00:48]} Ra8 {[%emt 0:01:03]} 31. Qb6 {[%emt 0:00:18]} Qa7 {[%emt 0:03:10]} 32. Qxc6 {[%emt 0:00:36]} Qxa5 {[%emt 0:00:12]} 33. Qb7+ {[%emt 0:00:32]} Kh8 {[%emt 0:00:30]} 34. Qf7 {[%emt 0:00:00]} Qa1+ {[%emt 0:00:22]} 35. Kd2 {[%emt 0:00:45]} Qxb2 {[%emt 0:00:05]} 36. Rxe8+ {[%emt 0:00:00]} Rxe8 {[%emt 0:00:01]} 37. Rh1 {[%emt 0:01:21]} Ne4+ {[%emt 0:01:48]} 38. Ke2 {[%emt 0:00:33]} Nd6+ {[%emt 0:00:37]} 39. Qxe8+ Nxe8 {[%emt 0:00:01]} 40. Rxh6+ {[%emt 0:00:00]} Kg7 {[%emt 0:00:26]} 41. Rg6+ {[%emt 0:29:41]} Kf8 {[%emt 0:29:54]} 42. Rxg5 {[%emt 0:00:00]} Qe5+ {[%emt 0:00:00]} 43. Kf3 {[%emt 0:00:00]} Nf6 {[%emt 0:00:00]} 44. Rg6 {[%emt 0:00:00]} Qe4+ {[%emt 0:00:00]} 45. Kg3 {[%emt 0:00:00]} Qe3+ {[%emt 0:00:00]} 46. Kh4 {[%emt 0:00:00]} Qf2+ {[%emt 0:00:00]} 47. Kh3 {[%emt 0:00:00]} Ne4 {[%emt 0:00:00]} 48. Rg8+ {[%emt 0:00:00]} Kxg8 {[%emt 0:00:00]} 49. Bxd5+ {[%emt 0:00:00]} Kg7 {[%emt 0:00:00]} 0-1